Cogmind - Beta 12 --- EXPLORER MODE // 2023.05.19 @ 10:56:19 Player: Mase Result: Self-destructed Performance ------------- Evolutions (1) 500 Regions Visited (2) 400 Robots Destroyed (23) 115 Value Destroyed (579) 579 Prototype IDs (3) 60 Alien Tech Used (0) 0 Bonus (0) 0 TOTAL SCORE: 1654 Bonus ------- None Cogmind --------- Core Integrity 386/400 Matter 300/300 Energy 290/290 System Corruption 1% Temperature Cool (0) Movement Treading (160) Location -9/Materials Parts ------- > --- POWER (2) -------- Light Ion Engine Improved Ion Engine > --- PROPULSION (2) --- Improved Treads Improved Treads > --- UTILITY (4) ------ Improved Heat Sink Medium Storage Unit Targeting Computer Medium Armor Plating > --- WEAPON (2) ------- Particle Gun Assault Rifle > --- INVENTORY (10) --- Light Treads Medium Storage Unit Visual Processing Unit Medium Armor Plating Medium Armor Plating Small Laser Assault Rifle Assault Rifle Light Assault Rifle Maul Peak State ------------ > --- POWER ------------ Light Ion Engine Improved Ion Engine > --- PROPULSION ------- Improved Treads Improved Treads > --- UTILITY ---------- Improved Heat Sink Medium Storage Unit Targeting Computer Medium Armor Plating > --- WEAPON ----------- Particle Gun Assault Rifle > --- INVENTORY -------- Light Treads Medium Storage Unit Visual Processing Unit Medium Armor Plating Medium Armor Plating Small Laser Assault Rifle Assault Rifle Light Assault Rifle Maul [Rating: 18] Favorites ----------- Power Light Ion Engine Engine Light Ion Engine Propulsion Light Treads Treads Light Treads Leg Aluminum Leg Flight Unit Flight Unit Utility Medium Storage Unit Device Improved Heat Sink Storage Medium Storage Unit Processor Targeting Computer Protection Medium Armor Plating Weapon Light Assault Rifle Energy Gun Small Laser Ballistic Gun Light Assault Rifle Build | -11 -10 -9 ------- Run | Jun Mat Mat Slots Evolved 3 | . 1 2 Power 1 | . . 1 Propulsion . | . . . Utility 2 | . 1 1 Weapon . | . . . Parts Attached 35 | 7 21 7 Power 5 | 1 2 2 Engine 5 | 1 2 2 Core . | . . . Reactor . | . . . Propulsion 17 | 2 13 2 Treads 12 | 2 8 2 Leg 3 | . 3 . Wheel . | . . . Hover . | . . . Flight 2 | . 2 . Utility 9 | 2 5 2 Device 1 | . . 1 Storage 2 | 1 1 . Processor 1 | . 1 . Hackware . | . . . Protection 5 | 1 3 1 Artifact . | . . . Weapon 4 | 2 1 1 Energy Gun 2 | 1 1 . Energy Cannon . | . . . Ballistic Gun 2 | 1 . 1 Ballistic Cannon . | . . . Launcher . | . . . Special Weapon . | . . . Impact Weapon . | . . . Slashing Weapon . | . . . Piercing Weapon . | . . . Special Melee Weapon . | . . . Unidentified Prototypes . | . . . Parts Lost 1 | . . 1 Power 1 | . . 1 Propulsion . | . . . Utility . | . . . Weapon . | . . . Highest Loss Streak 1 | . . 1 To Critical Strikes . | . . . Average Slot Usage (%) 98 | . 98 97 Engine 14 | . 11 18 Treads 22 | . 24 19 Device 4 | . . 10 Storage 11 | . 12 10 Processor 11 | . 12 10 Protection 10 | . 11 9 Energy Gun 11 | . 12 10 Ballistic Gun 11 | . 12 10 Naked Turns . | . . . Heaviest Build 33 | 18 24 33 Greatest Support 46 | 40 40 46 Greatest Overweight (x) 4 | . 4 1 Average Overweight (x) . | . . . Largest Inventory Capacity 10 | 10 10 10 Average Capacity 9 | 8 10 10 Most Carried 10 | 5 10 10 Average Carried 7 | 3 7 9 Final Capacity 10 | 10 10 10 Final Carried 10 | 5 10 10 Class Distribution -------------------- 100% | Hacker-Mutant Dominant Class ---------------- Hacker-Mutant | -10/Materials Hacker-Mutant | -9/Materials Resources | -11 -10 -9 ----------- Run | Jun Mat Mat Matter Collected 647 | 191 314 142 Remotely . | . . . Salvage Created 777 | . 297 480 Parts 50 | . 20 30 Haulers Intercepted . | . . . Recyclers Shooed . | . . . Parts Field Recycled . | . . . Retrieved Matter . | . . . Parts Self-Destructed . | . . . Prevented . | . . . Kills | -11 -10 -9 ------- Run | Jun Mat Mat Combat Hostiles Destroyed 16 | . 7 9 Guns 16 | . 7 9 Classes Destroyed 6 | . 4 2 Worker 2 | . 1 1 Recycler 1 | . . 1 Watcher 4 | . 2 2 Swarmer 4 | . 2 2 Grunt 9 | . 5 4 Sentry 3 | . . 3 Best Kill Streak 6 | . 5 6 Combat Bots Only 6 | . 2 6 Max Kills in Single Turn 2 | . 1 2 Gunslinging . | . . . Exploded . | . . . Melee . | . . . Uniques/NPCs Destroyed . | . . . Combat | -11 -10 -9 -------- Run | Jun Mat Mat Damage Taken 326 | . 145 181 Core 23 | . 9 14 Absorbed by Shields . | . . . Regen/Repaired (Parts) 98 | . . 98 Core Remaining (%) 98 | 100 96 . Volleys Fired 48 | . 25 23 Largest 2 | . 2 2 Hottest 85 | . 85 85 Shots Fired 95 | . 50 45 Gun 95 | . 50 45 Cannon . | . . . Launcher . | . . . Special . | . . . Kinetic 49 | . 25 24 Thermal 46 | . 25 21 Explosive . | . . . Electromagnetic . | . . . Robot Hit Streak 23 | . 16 23 Robot Miss Streak 2 | . 1 2 Penetration Max . | . . . Secondary Targets 2 | . 2 . Max Gunslinging Chain 1 | . 1 . Shots Hit Robots 75 | . 43 32 Core Hits 37 | . 19 18 Critical Kills 1 | . 1 . Critical Parts Destroyed . | . . . Critical Strikes 2 | . 1 1 Burn 1 | . . 1 Destroy 1 | . 1 . Melee Attacks . | . . . Impact . | . . . Slashing . | . . . Piercing . | . . . Sneak Attacks . | . . . Combat Hostiles . | . . . Follow-up Attacks . | . . . Damage Inflicted 919 | . 426 493 Guns 919 | . 426 493 Cannons . | . . . Explosions . | . . . Melee . | . . . Ramming . | . . . Kinetic 375 | . 156 219 Thermal 544 | . 270 274 Explosive . | . . . Electromagnetic . | . . . Impact . | . . . Slashing . | . . . Piercing . | . . . Highest Corruption 1 | . . 1 Average Corruption 1 | . . 1 Corruption Purged . | . . . Corruption Blocked . | . . . Effects 6 | . . 6 Message Errors 1 | . . 1 Matter Fused 1 | . . 1 Heat Flow Errors 1 | . . 1 Data Loss (minor) 1 | . . 1 Misfires 1 | . . 1 Alerts 1 | . . 1 Overload Shots . | . . . Overflow Damage . | . . . Projectiles . | . . . Explosions . | . . . Melee . | . . . Knockbacks . | . . . Impact . | . . . Kinetic . | . . . Secondary . | . . . Self-Inflicted Damage . | . . . Shots . | . . . Rammed . | . . . Targets Rammed . | . . . Kicked . | . . . Crushed . | . . . Highest Temperature 222 | . 175 222 Average Temperature 70 | . 66 78 Received Heat Transfer 243 | . 138 105 Siege Activations . | . . . Robots Corrupted . | . . . Combat Hostiles . | . . . Parts Fried . | . . . Impact Corruptions . | . . . Robots Melted . | . . . Combat Hostiles . | . . . Parts Melted 3 | . 3 . Heat Transferred 1376 | . 636 740 Parts Sabotaged . | . . . Parts Stolen . | . . . Parts Stripped . | . . . Power Chain Reactions . | . . . Missiles Intercepted . | . . . Alert | -11 -10 -9 ------- Run | Jun Mat Mat Peak Influence 253 | . 134 253 Initial 40 | . . 40 Average 67 | . 40 125 Maximum Alert Level 1 | . . 1 Low Security (%) 86 | 100 100 63 Level 1 13 | . . 36 Level 2 . | . . . Level 3 . | . . . Level 4 . | . . . Level 5 . | . . . High Security . | . . . Max Security . | . . . Squads Dispatched 2 | . . 2 Investigation . | . . . Extermination . | . . . Reinforcement 2 | . . 2 Assault . | . . . Garrison . | . . . Intercept . | . . . Searches Triggered . | . . . Construction Impeded . | . . . Haulers Reinforced . | . . . Active Scanning Responses . | . . . Cargo Convoy Interrupts . | . . . Stealth | -11 -10 -9 --------- Run | Jun Mat Mat Distress Signals 1 | . . 1 Communications Jammed . | . . . Distress Signals . | . . . Times Spotted 23 | . 9 14 Peak Tracking Total 6 | . 2 6 Tactical Retreats . | . . . Traps | -11 -10 -9 ------- Run | Jun Mat Mat Traps Triggered 2 | . 1 1 Indirectly . | . . . Trap Hack Attempts . | . . . Triggered . | . . . Disarmed . | . . . Reprogrammed . | . . . Reused . | . . . Traps Extracted . | . . . Installed . | . . . Triggered . | . . . Machines | -11 -10 -9 ---------- Run | Jun Mat Mat Machines Disabled . | . . . Max in Single Turn . | . . . Machines Repaired . | . . . Machines Sabotaged . | . . . Overloaded Fab Kills . | . . . Hacking | -11 -10 -9 --------- Run | Jun Mat Mat Machines Accessed 7 | . 4 3 Terminals 6 | . 4 2 Fabricators . | . . . Repair Stations 1 | . . 1 Recycling Units . | . . . Scanalyzers . | . . . Garrison Access . | . . . Total Hacks 14 | . 7 7 Successful 9 | . 6 3 Failed 5 | . 1 4 Catastrophic . | . . . Database Lockouts . | . . . Manual . | . . . Terminals 11 | . 7 4 Fabricators . | . . . Repair Stations 3 | . . 3 Recycling Units . | . . . Scanalyzers . | . . . Garrison Access . | . . . Terminal Hacks 7 | . 6 1 Robot Analysis 1 | . . 1 Prototype ID Bank 2 | . 2 . Unreport Threat 1 | . 1 . Zone Layout 3 | . 3 . Fabricator Hacks . | . . . Repair Station Hacks 2 | . . 2 Scan Component 1 | . . 1 Repair 1 | . . 1 Recycling Unit Hacks . | . . . Scanalyzer . | . . . Garrison Access Hacks . | . . . Unauthorized Hacks . | . . . Terminals . | . . . Fabricators . | . . . Repair Stations . | . . . Recycling Units . | . . . Scanalyzers . | . . . Garrison Access . | . . . Data Cores Recovered . | . . . Used . | . . . Hacking Detections 4 | . 1 3 Full Trace Events . | . . . Feedback Events . | . . . Feedback Blocked . | . . . Robot Schematics Acquired . | . . . Robots Built . | . . . Authchips . | . . . Time . | . . . Total Robot Build Rating . | . . . Part Schematics Acquired . | . . . Parts Built . | . . . Authchips . | . . . Time . | . . . Total Part Build Rating . | . . . Parts Repaired 1 | . . 1 Time 16 | . . 16 Parts Recycled . | . . . Recycled Matter . | . . . Retrieved Matter . | . . . Retrieved Components . | . . . Parts Scanalyzed . | . . . Part Schematics Acquired . | . . . Parts Damaged . | . . . Bothacking | -11 -10 -9 ------------ Run | Jun Mat Mat Used RIF Installer . | . . . Robots Hacked . | . . . Non-combat . | . . . Combat . | . . . Robot Hacks Applied . | . . . Relay Couplers Released . | . . . Fabnet Peak Effective % . | . . . Robots Rewired . | . . . Allies Hacked . | . . . Hacks Repelled . | . . . Allies | -11 -10 -9 -------- Run | Jun Mat Mat Total Allies . | . . . Largest Group . | . . . Highest-Rated Group . | . . . Highest-Rated Ally . | . . . Total Orders . | . . . Ally Attacks . | . . . Total Damage . | . . . Kills . | . . . Allies Corrupted . | . . . Allies Melted . | . . . Intel | -11 -10 -9 ------- Run | Jun Mat Mat Robot Analysis Total 1 | . . 1 Derelict Logs Recovered . | . . . Drone Launches . | . . . Drone Recoveries . | . . . Exploration | -11 -10 -9 ------------- Run | Jun Mat Mat Turns Passed 1229 | 119 666 444 Spaces Moved 596 | 65 321 210 Core 3 | 3 . . Treads 588 | 62 316 210 Legs . | . . . Wheels . | . . . Hover . | . . . Flight 5 | . 5 . Fastest Speed 50 | 50 160 160 Average Speed 160 | 154 161 162 Slowest Speed 360 | 160 360 240 Overloaded Moves . | . . . Propulsion Burnouts . | . . . Robots Hopped . | . . . Cave-ins Triggered . | . . . Exploration Rate (%) 31 | 5 63 25 Regions Visited 2 Branch Regions . Pre-discovered Areas . | . . . Known Exits Taken 2 | 1 1 . Unknown Exits Taken . | . . . Scrap Searched . | . . . Spaces Dug . | . . . Terrain Destroyed . | . . . Melee . | . . . Projectile . | . . . AOE . | . . . Terrain Rammed . | . . . Walls Destroyed . | . . . Machines Disabled . | . . . Actions | -11 -10 -9 --------- Run | Jun Mat Mat Total 778 | 83 429 266 Wait 47 | . 24 23 Move 594 | 64 320 210 Hop . | . . . Pick Up 33 | 12 20 1 Fast Attach 8 | . 4 4 Attach 18 | 7 9 2 Detach 4 | . 3 1 Swap 9 | . 8 1 Drop 17 | . 16 1 Fire 48 | . 25 23 Melee . | . . . Ram . | . . . Kick . | . . . Crush . | . . . Escape Stasis . | . . . Rewire . | . . . Trap . | . . . Miscellaneous . | . . . Route ------- -11/Junkyard -10/Materials (discovered 3 exits: *Mat x2 / *Min) -9/Materials (discovered 1 exit: *Min) History --------- Turn | Location | Event 15 | -11/Junkyard | Identified exit to Materials 15 | -11/Junkyard | Discovered exit to Materials (range 15) 120 | -11/Junkyard | Entered Materials 120 | -10/Materials | Evolved 1 slot: Utility x1 306 | -10/Materials | Identified exit to Materials 306 | -10/Materials | Discovered exit to Materials (range 12) 316 | -10/Materials | Build established: Hacker-Mutant 589 | -10/Materials | Identified exit to Mines 589 | -10/Materials | Discovered exit to Mines (range 9) 766 | -10/Materials | Discovered exit to Materials (range 10) 786 | -10/Materials | Entered another Materials area 786 | -9/Materials | Evolved 2 slots: Power x1, Utility x1 1093 | -9/Materials | Repaired Med. Armor Plating 1222 | -9/Materials | Identified exit to Mines 1222 | -9/Materials | Discovered exit to Mines (range 15) 1230 | -9/Materials | Self-destructed Last Messages --------------- ETC: 16 01093_ Repair station completes Med. Armor Plating repairs. 01093_ Acquired Med. Armor Plating. 01136_ Acquired 10 matter. 01140_ /N=4 >C|V#MY 01182_ ALERT: Hostiles spotted, dispatching reinforcements to Terminal M003. 01183_ System corrupted: Component data lost. 01196_ Connecting with Terminal... 01206_ Y-45 Defender destroyed. 01207_ System corrupted: Matter fused (-5). 01208_ K-01 Serf collects debris. 01215_ W-16 Scout destroyed. 01216_ K-01 Serf collects debris. 01222_ EXIT=FOUND: MINES 01223_ Connecting with Terminal... 01223_ Acquired 17 matter. 01224_ K-01 Serf collects debris. Map ----- +----------------------------------------------------+ | ?????????????????????????????????????????????????? | | ?????????????????????????????????????????????????? | | ?????????????????????????????????????????????????? | | ?????????????????????????????????????????????????? | | ?????????????????????????????????????????????????? | | ?????????????????????????????????????????????????? | | ?????????????????????????????????????????????????? | | ?????????????????????????????????????????????????? | | ?????????????????????????????????????????????????? | | ?????????????????????????????????????????????????? | | ????????????????????????? ???????????????????????? | | ????????????????????? ??? ???????????????????????? | | ??????????????????! ??? ???????????????????????? | | ?????????????????"" >??? ???????????????????????? | | ??????????????????! ??k???????????????????????? | | ??????????????????" ?? ???????????????????????? | | ??????????????????? ?? ???????????????????????? | | ???????????????????# ##%#??????????????????????? | | ??????????????######u *#??????????????????????? | | ??????????????? #??????????????????????? | | ???????????????? #??????????????????????? | | ???????????? ?""" ** #??????????????????????? | | ??????????? """ ** #??????????????????????? | | ?????????? """ * #??????????????????????? | | ?????????? ###????????????????????? | | ?????????? @""#????????????????????? | | ?????????? [%T"#????????????????????? | | ?????????# =!""#????????????????????? | | ????????? =k u ###?????? ###??????????? | | ????????? ! w a ### ?????????? | | ?????????? #T## ?????????? | | ??????????? ??#??# ### ?????????? | | ????????????????######### #?????? ###??????????? | | ????????????????# """"" # ###########??????????? | | ????????????????# ""T"" + + #??????????? | | ????????????????# # # #??????????? | | ????????????????# + o# """ #??????????? | | ????????????????# !! ## ## """ #??????????? | | ????????????????# ! ## ## """ "" #??????????? | | ????????????????# ## ## T" #??????????? | | ????????????????# ## ## "" #??????????? | | ????????????????###### ###%## ??????????? | | ???????????????????#######+###########???????????? | | ???????????????????# % #????????????????????? | | ???????????????????# [ """ #??????????########### | | ???????????????????# """ #?########?# | | | ???????????????????# """ #?# "T" #?# | | ???????????????????# #?# #?# """"" | | ???????????????????# "" #?# """ #?# """"""""" | | ???????????????????# =!""" #?# """ #?# """ """ | +----------------------------------------------------+ Best States ------------- Heat Dissipation 42 Energy Generation 17 Energy Capacity 290 Matter Stores 300 Matter Capacity 400 Sight Range 16 Terrain Scan Density 10 Armor Coverage 225 Resistance: KI 35 Resistance: TH 35 Resistance: EX 35 Resistance: EM 35 Resistance: I 35 Resistance: S 35 Resistance: P 35 Weapon Shielding 33 Evasion (%) 40 Targeting Accuracy 5 Recoil Reduction 2 Offensive Hacking 20 Item Schematics ----------------- None Robot Schematics ------------------ None Fabricated ------------ Nothing Alien Tech Used ----------------- None Achievements -------------- Everything Is Under Control Challenges ------------ None Game ------ Seed SiegeSmallCalibrator Manual? 0 Play Time 00:21:35 Cumulative 7.0 hours Start 2023.05.19 @ 10:24:50 End 2023.05.19 @ 10:56:19 Sessions 1 Manual Loads 0 Difficulty Explorer Special Mode None Game No. 3 Rogue 0 Adventurer 0 Explorer 3 Win Type - Total 0 Types 0/0/0/0/0/0/0/0/0 Lore% 7 Gallery% 12 Achievement% 10 Wizard Run 0 Options --------- ASCII 0 Keyboard 0 Movement Numpad Keybinds 0 Fullscreen 1 Font 18/TerminusBold Map View 76x50 Tactical HUD 1 Map Filters NONE Filters NONE Steam 1 RUN: 6002d5af-f9cb-41e7-8826-e4ed493ad489